fUST/lending_fUST_20251102
["ID","MTS","AMOUNT","RATE_DAILY","PERIOD"]
[392866919,1762086496072,1000.0,0.00020872,2]
[392866921,1762086496848,-311.16142771,0.00021478,2]
[392866922,1762086496874,-39.88687424,0.00021534,2]
[392866928,1762086498250,-110.11312576,0.00021534,2]
[392866929,1762086498273,-105.42193945,0.00021608,2]
[392866931,1762086500343,-164.77441272,0.00021608,2]
[392866932,1762086505125,-337.95534074,0.00021608,2]
[392866938,1762086513376,150.0,0.00021265,2]
[392866943,1762086581109,150.0,0.00021279,2]
[392866944,1762086586424,500.0,0.00037887,60]
[392866947,1762086626650,500.0,0.00021918,5]
[392866948,1762086627087,500.0,0.00022192,5]
[392866949,1762086627602,500.0,0.00022466,5]
[392866989,1762086632108,-1776.27944985,0.00021608,2]
[392866991,1762086632119,-3003.43781233,0.00021608,2]
[392866993,1762086632128,-5056.83114101,0.00021608,2]
[392867046,1762086637953,-1700.90393673,0.00021608,2]
[392867048,1762086637964,-331.0,0.00021608,2]
[392867050,1762086637974,-982.19021708,0.00021806,2]
[392867052,1762086637983,-3172.60613706,0.00021841,2]
[392867054,1762086637993,-386.42086152,0.00021845,2]
[392867056,1762086638002,-1200.0,0.00021867,2]
[392867058,1762086638011,-300.0,0.00021868,2]
[392867060,1762086638021,-300.0,0.00021868,2]
[392867062,1762086638031,-300.0,0.00021868,2]
[392867064,1762086638040,-622.02236983,0.00021871,2]
[392867066,1762086638049,-409.41239483,0.00021871,2]
[392867067,1762086638059,-292.20024688,0.00021873,2]
[392867069,1762086638071,-207.79975312,0.00021873,2]
[392867070,1762086638081,-171.98809903,0.00021873,2]
[392867071,1762086638091,-80.21214785,0.00021873,2]
[392867072,1762086638103,-419.78785215,0.00021873,2]
[392867073,1762086638112,-120.21214785,0.00021873,2]
[392867074,1762086638128,-18240.42877962,0.00021873,2]
[392867075,1762086638139,-1790.48099713,0.00021873,2]
[392867105,1762086640172,-6706.05317669,0.00021873,2]
[392867106,1762086640182,-943.95137506,0.00021873,2]
[392867107,1762086640191,-500.0,0.00021889,2]
[392867108,1762086640201,-355.31281199,0.00021889,2]
[392867109,1762086640210,-5955.06368101,0.0002189,2]
[392867110,1762086640219,-20209.23491724,0.0002189,2]
[392867111,1762086640554,-3e-08,0.0002189,2]
[392867112,1762086640566,-645.88935581,0.0002189,2]
[392867113,1762086640577,-21810.01816052,0.0002189,2]
[392867183,1762086643126,-3278.08220752,0.0002189,2]
[392867184,1762086643204,-639056.77535888,0.0002189,2]
[392867185,1762086643214,-587.10164125,0.00021945,2]
[392867186,1762086643225,-395.08857583,0.00021945,2]
[392867187,1762086643235,-500.0,0.00021973,2]
[392867188,1762086643245,-500.0,0.00021973,2]
[392867189,1762086643257,-500.0,0.00021973,2]
[392867190,1762086643268,-503.13085624,0.00021973,2]
[392867191,1762086643278,-500.0,0.00021973,2]
[392867192,1762086643289,-506.3136035,0.00021973,2]
[392867193,1762086643299,-500.0,0.00021973,2]
[392867194,1762086643310,-1797.91729713,0.0002199,2]
[392867195,1762086645435,150.0,0.00021286,2]
[392867201,1762086646179,-67938.9691131,0.0002199,2]
[392867202,1762086653286,-289.05437649,0.0002199,2]
[392867203,1762086655227,-366.35849592,0.0002199,2]
[392867204,1762086656775,-231.29042811,0.0002199,2]
[392867205,1762086659541,-184.55838011,0.0002199,2]
[392867206,1762086662395,300.0,0.00021989,2]
[392867207,1762086663450,-187.75522723,0.0002199,2]
[392867208,1762086665483,-267.71156377,0.0002199,2]
[392867210,1762086673240,5000.0,0.000225,3]
[392867212,1762086680533,500.0,0.00021871,2]
[392867213,1762086680584,500.0,0.00021871,2]
[392867214,1762086680634,500.0,0.00021871,2]
[392867215,1762086680687,500.0,0.00021871,2]
[392867216,1762086680751,500.0,0.00021871,2]
[392867217,1762086680804,500.0,0.00021871,2]
[392867218,1762086680863,214.87598187,0.00021871,2]
[392867219,1762086681182,-210.32924885,0.0002199,2]
[392867220,1762086685366,-201.99864788,0.0002199,2]
[392867221,1762086688115,-380.71823815,0.0002199,2]
[392867222,1762086690279,-452.04775782,0.0002199,2]
[392867224,1762086709712,150.0,0.00021609,2]
[392867225,1762086719707,6185.13401813,0.0002179,2]
[392867226,1762086719729,10000.01,0.0002179,2]
[392867227,1762086719752,10000.01,0.0002179,2]
[392867228,1762086719774,10000.01,0.0002179,2]
[392867229,1762086724018,-300.0,0.00021789,2]
[392867230,1762086727186,500.0,0.00037887,60]
[392867246,1762086737615,-265.10365602,0.0002179,2]
[392867283,1762086758387,-215.79460408,0.00021789,2]
[392867284,1762086762037,-32.92436432,0.00021789,2]
[392867285,1762086762059,-349.15997756,0.00021789,2]
[392867286,1762086762359,175.24,0.0002178,10]
[392867288,1762086764257,-8.04846487,0.00021789,2]
[392867289,1762086764280,-172.81786978,0.0002179,2]
[392867290,1762086765839,-154.19619593,0.0002179,2]
[392867291,1762086767380,-180.88614805,0.0002179,2]
[392867297,1762086839857,150.0,0.00020925,2]
[392867299,1762086855832,27399.11043998,0.000225,3]
[392867306,1762086918173,151.0,0.00037919,60]
[392867307,1762086919509,156.587,0.00037919,60]
[392867308,1762086920156,162.380719,0.00037919,60]
[392867309,1762086920822,168.3888056,0.00037919,60]
[392867311,1762086921433,174.61919141,0.00037919,60]
[392867312,1762086922739,-150.0,0.00021121,2]
[392867313,1762086922761,-55.21172276,0.00021253,2]
[392867314,1762086923866,181.08010149,0.00037919,60]
[392867315,1762086924529,187.78006525,0.00037919,60]
[392867316,1762086925153,194.72792766,0.00037919,60]
[392867317,1762086925183,-257.08464055,0.00021253,2]
[392867318,1762086925739,201.93286099,0.00037919,60]
[392867319,1762086926335,209.40437684,0.00037919,60]
[392867320,1762086928858,-57.82642467,0.00021253,2]
[392867321,1762086928880,-139.96047233,0.00021453,2]
[392867322,1762086930424,-187.84825579,0.00021453,2]
[392867325,1762086934806,-153.48090394,0.00021453,2]
[392867326,1762086936236,-232.25765712,0.00021453,2]
[392867327,1762086937763,-191.22851448,0.00021453,2]
[392867328,1762086940740,-284.84011737,0.00021453,2]
[392867329,1762086942880,-196.27959068,0.00021453,2]
[392867330,1762086942903,-42.70909177,0.00021608,2]
[392867331,1762086945636,-177.20251517,0.00021608,2]
[392867332,1762086967779,-160.51773996,0.00021608,2]
[392867333,1762086970527,-11.74352291,0.00021608,2]
[392867334,1762086970550,-379.47168312,0.00021687,2]
[392867335,1762086971877,150.0,0.00021039,2]
[392867336,1762086973975,-296.83803839,0.00021687,2]
[392867337,1762086978362,-186.16196161,0.00021687,2]
[392867338,1762086980580,-316.09512002,0.00021687,2]
[392867339,1762086984153,-87.63867076,0.00021687,2]
[392867340,1762086984181,-261.17619539,0.00021772,2]
[392867341,1762086998112,-938.82380461,0.00021772,2]
[392867342,1762087002799,190.413632,0.00030137,120]
[392867359,1762087036558,150.0,0.00021094,2]
[392867404,1762087042973,-1050.0,0.00021889,20]
[392867405,1762087042993,-558.61889942,0.00021889,23]
[392867445,1762087114288,236.46752679,0.00021597,2]
[392867446,1762087130197,1107.92978961,0.00021687,2]
[392867447,1762087130919,-408.53034593,0.00021773,2]
[392867450,1762087132919,-91.46965407,0.00021773,2]
[392867451,1762087132940,-109.33648745,0.00021773,2]
[392867452,1762087134361,-390.66351255,0.00021773,2]
[392867453,1762087134383,-91.25172806,0.00021773,2]
[392867454,1762087135390,-750.0,0.00021889,14]
[392867455,1762087135414,-900.0,0.00021889,17]
[392867456,1762087135437,-161.27,0.000228,14]
[392867457,1762087135460,-151.0,0.0002291,14]
[392867458,1762087135480,-154.56633297,0.0002291,14]
[392867459,1762087135501,-151.0,0.0002291,14]
[392867460,1762087135521,-298.72982051,0.0002291,14]
[392867461,1762087135541,-151.0,0.0002291,14]
[392867462,1762087135563,-151.0,0.0002291,14]
[392867463,1762087135585,-156.79151714,0.0002291,14]
[392867464,1762087135604,-151.0,0.0002291,14]
[392867465,1762087135623,-151.0,0.0002291,14]
[392867466,1762087135642,-158.71134326,0.0002291,14]
[392867467,1762087135662,-151.0,0.0002291,14]
[392867468,1762087135685,-151.0,0.00022965,14]
[392867469,1762087135704,-151.0,0.00022965,14]
[392867470,1762087137007,1157.81256968,0.0002174,2]
[392867471,1762087138816,-368.87289584,0.00021773,2]
[392867473,1762087140732,-39.8753761,0.00021773,2]
[392867474,1762087140756,-315.70887809,0.00021779,2]
[392867475,1762087140780,-88.93012265,0.00021785,2]
[392867476,1762087154180,-300.0,0.00021785,2]
[392867477,1762087164883,-600.0,0.00021889,11]
[392867478,1762087169546,-256.95799799,0.00021786,2]
[392867479,1762087169576,-171.48090563,0.00021786,2]
[392867480,1762087169606,-232.25765712,0.00021786,2]
[392867481,1762087169641,-500.0,0.00021786,2]
[392867482,1762087169671,-270.93031207,0.00021786,2]
[392867483,1762087169707,-500.0,0.00021786,2]
[392867484,1762087169741,-500.0,0.00021786,2]
[392867485,1762087169771,-500.0,0.00021786,2]
[392867486,1762087169800,-500.0,0.00021786,2]
[392867487,1762087169831,-500.0,0.00021786,2]
[392867488,1762087169861,-500.0,0.00021786,2]
[392867489,1762087169892,-500.0,0.00021786,2]
[392867490,1762087170037,-500.0,0.00021786,2]
[392867491,1762087170067,-500.0,0.00021786,2]
[392867492,1762087170100,-500.0,0.00021786,2]
[392867493,1762087170131,-500.0,0.00021786,2]
[392867494,1762087170164,-500.0,0.00021786,2]
[392867495,1762087170198,-333.5467809,0.00021786,2]
[392867496,1762087170228,-500.0,0.00021786,2]
[392867497,1762087185420,-6209.13318532,0.00021786,2]
[392867498,1762087185551,-462.33430524,0.00021786,2]
[392867499,1762087185574,-9075.34138952,0.00021786,2]
[392867500,1762087187156,-508.90833633,0.00021787,2]
[392867501,1762087189330,-214.38847511,0.00021787,2]
[392867502,1762087191838,466.26891352,0.00021786,2]
[392867503,1762087200171,-9533.74108648,0.00021787,2]
[392867504,1762087200320,-10000.01,0.00021787,2]
[392867505,1762087200477,-10000.01,0.00021787,2]
[392867506,1762087200599,-10000.01,0.00021787,2]
[392867507,1762087200735,-10000.01,0.00021787,2]
[392867508,1762087200912,-1742.24114662,0.00021787,2]
[392867509,1762087200948,-6515.52770676,0.00021787,2]
[392867510,1762087201011,-300.0,0.00021787,2]
[392867511,1762087202562,300.0,0.00021786,2]
[392867512,1762087203350,-9700.01,0.00021788,2]
[392867513,1762087203534,-10000.01,0.00021788,2]
[392867515,1762087209513,165.83796215,0.00037852,60]
[392867516,1762087213944,-257.37033115,0.00021777,2]
[392867517,1762087213977,-500.0,0.00021786,2]
[392867518,1762087214008,-500.0,0.00021786,2]
[392867519,1762087214040,-500.0,0.00021786,2]
[392867520,1762087214073,-1200.0,0.00021787,2]
[392867521,1762087214184,-4085.2693377,0.00021788,2]
[392867522,1762087215156,-10000.01,0.00021788,2]
[392867523,1762087215402,-10000.01,0.00021788,2]
[392867524,1762087215629,-10000.01,0.00021788,2]
[392867525,1762087215859,-10000.01,0.00021788,2]
[392867527,1762087294299,150.0,0.00020921,2]
[392867606,1762087359873,150.0,0.00020926,2]
[392867613,1762087403333,-163.07122686,0.00021566,2]
[392867614,1762087405536,-502.89738931,0.00021566,2]
[392867617,1762087423818,150.0,0.00020967,2]
[392867618,1762087443654,52437.50049329,0.00037849,60]
[392867619,1762087488322,150.0,0.00020977,2]
[392867664,1762087622806,3357.15328896,0.00021327,2]
[392867675,1762087688735,150.0,0.00021231,2]
[392867677,1762087754637,150.0,0.00021274,2]
[392867678,1762087797733,355.37,0.00021276,30]
[392867679,1762087802259,-150.22571408,0.00021327,2]
[392867680,1762087809292,284.096609,0.00020898,2]
[392867681,1762087817510,-309.39470053,0.00021359,2]
[392867682,1762087818960,150.0,0.00021272,2]
[392867719,1762087832214,-1147.18672226,0.0002139,2]
[392867724,1762087832274,-40.43753144,0.0002139,2]
[392867726,1762087832284,-1852.0,0.00021458,2]
[392867728,1762087832294,-1498.63109674,0.0002167,2]
[392867730,1762087832304,-770.47211323,0.00021671,2]
[392867732,1762087832314,-300.0,0.00021693,2]
[392867734,1762087832323,-300.0,0.00021694,2]
[392867736,1762087832333,-300.0,0.00021694,2]
[392867738,1762087832343,-1200.0,0.00021694,2]
[392867740,1762087832354,-542.23996286,0.00021694,2]
[392867742,1762087832363,-500.0,0.00021694,2]
[392867744,1762087832372,-162.47904137,0.00021694,2]
[392867746,1762087832382,-500.0,0.00021694,2]
[392867748,1762087832391,-500.0,0.00021694,2]
[392867750,1762087832400,-500.0,0.00021694,2]
[392867752,1762087832410,-500.0,0.00021694,2]
[392867754,1762087832419,-500.0,0.00021694,2]
[392867756,1762087832428,-500.0,0.00021694,2]
[392867758,1762087832438,-500.0,0.00021694,2]
[392867760,1762087832447,-500.0,0.00021694,2]
[392867762,1762087832456,-500.0,0.00021694,2]
[392867764,1762087832466,-500.0,0.00021694,2]
[392867766,1762087832478,-500.0,0.00021694,2]
[392867768,1762087832487,-6248.74794383,0.00021695,2]
[392867770,1762087832498,-1654.95985648,0.00021701,2]
[392867772,1762087832507,-2425.82863471,0.00021701,2]
[392867774,1762087832519,-3606.87637111,0.00021701,2]
[392867778,1762087838169,-359.02705364,0.00021701,2]
[392867779,1762087838182,-1151.0909621,0.00021701,2]
[392867846,1762087840875,-3e-08,0.00021701,2]
[392867850,1762087843324,-2063.36381928,0.00021701,2]
[392867851,1762087843334,-1187.6242537,0.00021722,2]
[392867852,1762087843345,-502.21744512,0.00021773,2]
[392867853,1762087843355,-500.0,0.00021773,2]
[392867854,1762087843365,-500.0,0.00021773,2]
[392867855,1762087843375,-428.50951249,0.00021773,2]
[392867893,1762087846281,-71.49048751,0.00021773,2]
[392867894,1762087846291,-423.23790674,0.00021773,2]
[392867929,1762087883694,1187.62425371,0.00021769,2]
[392867930,1762087884416,150.0,0.00021246,2]
[392867931,1762087903086,309.583,0.00021354,2]
[392867932,1762087924656,1311.30220963,0.00021691,2]
[392867933,1762087926037,-76.76209326,0.00021773,2]
[392867934,1762087926059,-197.96438054,0.00021773,2]
[392867935,1762087928071,-154.57105052,0.00021773,2]
[392867936,1762087930220,-449.32869241,0.00021773,2]
[392867937,1762087933495,-50.67130759,0.00021773,2]
[392867938,1762087933516,-249.14094162,0.00021773,2]
[392867939,1762087933536,-0.19560005,0.00021773,2]
[392867940,1762087935651,-162.51335656,0.00021773,2]
[392867941,1762088004017,-303.20680652,0.00021776,2]
[392867942,1762088004048,-618.01,0.0002178,3]
[392867943,1762088004078,-618.03,0.0002178,3]
[392867944,1762088004107,-300.0,0.00021787,2]
[392867945,1762088004376,-9271.76702566,0.00021788,2]
[392867946,1762088004392,-10000.01,0.00021788,2]
[392867947,1762088004459,-3028.92781043,0.00021788,2]
[392867948,1762088004490,-179.8705986,0.00021789,2]
[392867949,1762088004540,-3582.41318194,0.0002179,2]
[392867950,1762088004594,-10000.01,0.0002179,2]
[392867951,1762088004779,-10000.01,0.0002179,2]
[392867952,1762088004939,-10000.01,0.0002179,2]
[392867953,1762088005080,-10000.01,0.0002179,2]
[392867954,1762088005226,-10000.01,0.0002179,2]
[392867955,1762088005369,-10000.01,0.0002179,2]
[392867956,1762088006927,-10000.01,0.0002179,2]
[392867957,1762088010019,-10000.01,0.0002179,2]
[392867958,1762088010143,-10000.01,0.0002179,2]
[392867959,1762088010247,-10000.01,0.0002179,2]
[392867960,1762088010382,-10000.01,0.0002179,2]
[392867961,1762088010493,-10000.01,0.0002179,2]
[392867962,1762088010619,-10000.01,0.0002179,2]
[392867963,1762088010731,-10000.01,0.0002179,2]
[392867964,1762088010889,-10000.01,0.0002179,2]
[392867965,1762088011012,-10000.01,0.0002179,2]
[392867971,1762088213274,-265.44336032,0.000213,2]
[392867972,1762088215402,-66.97748464,0.000213,2]
[392867973,1762088215429,-108.49068518,0.0002161,2]
[392867974,1762088219361,-41.50931482,0.0002161,2]
[392867975,1762088219382,-285.31726828,0.00021673,2]
[392867976,1762088221405,-214.68273172,0.00021673,2]
[392867977,1762088221429,-37.37277659,0.00021673,2]
[392867978,1762088224743,-276.52831282,0.00021673,2]
[392867979,1762088227336,-186.09891059,0.00021673,2]
[392867980,1762088227359,-40.12871172,0.00021673,2]
[392867981,1762088229291,-212.41151562,0.00021673,2]
[392867982,1762088231264,-247.45977266,0.00021673,2]
[392867983,1762088231287,-32.67871172,0.00021673,2]
[392867984,1762088233543,-295.65083846,0.00021673,2]
[392867985,1762088235992,10277.62,0.00037853,60]
[392867986,1762088236627,-171.67044982,0.00021673,2]
[392867987,1762088236649,-142.84387718,0.00021673,2]
[392867989,1762088238092,-269.90145459,0.00021673,2]
[392867990,1762088238993,151.0,0.000201,4]
[392867991,1762088239290,151.0,0.000188,2]
[392867992,1762088239760,151.0,0.000175,2]
[392867993,1762088240094,151.0,0.000162,2]
[392867994,1762088240257,-151.0,0.000214,3]
[392867995,1762088240279,-87.25466823,0.00021673,2]
[392867996,1762088240301,-88.34110569,0.00021677,2]
[392867997,1762088240402,151.0,0.000149,2]
[392867998,1762088240719,151.0,0.000136,2]
[392867999,1762088241056,151.0,0.000123,2]
[392868000,1762088241968,719.912028,0.00013699,2]
[392868001,1762088242163,719.912028,0.00020187,2]
[392868002,1762088242910,-195.50007337,0.00021677,2]
[392868003,1762088245014,-187.81375083,0.00021677,2]
[392868004,1762088249268,-409.2437743,0.00021677,2]
[392868005,1762088250851,-266.49072921,0.00021677,2]
[392868006,1762088250873,-113.4659546,0.00021688,2]
[392868007,1762088252979,-186.5340454,0.00021688,2]
[392868008,1762088253001,-275.52197032,0.00021689,2]
[392868009,1762088255660,-24.47802968,0.00021689,2]
[392868010,1762088255682,-159.94209765,0.00021689,2]
[392868011,1762088257698,-140.05790235,0.00021689,2]
[392868012,1762088257720,-308.00757181,0.00021689,2]
[392868013,1762088260431,-168.95182168,0.00021689,2]
[392868014,1762088261856,-200.0437462,0.00021688,2]
[392868015,1762088265644,-300.0,0.00021688,2]
[392868016,1762088267343,-419.09191029,0.00021688,2]
[392868017,1762088269380,-280.86434351,0.00021688,2]
[392868018,1762088269405,-92.24675201,0.00021689,2]
[392868019,1762088270911,-200.0,0.00021689,2]
[392868020,1762088279002,901.4635298,0.00020732,2]
[392868021,1762088301179,2623.1885134,0.00020712,2]
[392868022,1762088347776,4680.218665,0.00020665,2]
[392868023,1762088348660,161.07110025,0.00021,2]
[392868025,1762088453413,-371.46902386,0.00021399,2]
[392868026,1762088455744,-269.39634705,0.00021399,2]
[392868027,1762088467805,-150.0,0.00021336,2]
[392868028,1762088467827,-67.93552082,0.00021399,2]
[392868029,1762088471700,-159.85015531,0.00021399,2]
[392868030,1762088483332,-223.05811855,0.00021399,2]
[392868031,1762088484914,-101.94188145,0.00021399,2]
[392868032,1762088484936,-162.27334817,0.00021473,2]
[392868033,1762088497744,-153.93840474,0.00021473,2]
[392868034,1762088499210,-105.95615315,0.00021473,2]
[392868035,1762088499232,-67.42609036,0.00021473,2]
[392868036,1762088501820,-108.76140838,0.00021473,2]
[392868037,1762088501843,-500.0,0.00021473,2]
[392868038,1762088501866,-129.82100705,0.00021473,2]
[392868039,1762088512799,-226.38396877,0.00021473,2]
[392868041,1762088573906,-489.08978295,0.00021398,2]
[392868042,1762088575959,-432.1193027,0.00021398,2]
[392868043,1762088580397,-217.5906973,0.00021398,2]
[392868044,1762088584038,-60.60854871,0.00021398,2]
[392868045,1762088584060,-155.93364418,0.00021473,2]
[392868046,1762088584081,-83.45780711,0.00021496,2]
[392868047,1762088585703,-300.0,0.00021398,2]
[392868049,1762088616822,90638.40289834,0.00032876,120]
[392868050,1762088731328,500.0,0.00032876,120]
[392868052,1762088738420,-214.32642397,0.00021145,2]
[392868053,1762088738443,-59.50190361,0.00021298,2]
[392868054,1762088741150,-317.77055923,0.00021298,2]
[392868055,1762088743185,-286.29456737,0.00021298,2]
[392868056,1762088743211,-16.77692056,0.00021348,2]
[392868057,1762088745913,-213.05451628,0.00021348,2]
[392868058,1762088757326,472.90547166,0.0001,2]
[392868059,1762088758044,-84.17995031,0.00021348,2]
[392868060,1762088758066,-300.0,0.00021397,2]
[392868061,1762088758087,-10.40566304,0.00021397,2]
[392868062,1762088758161,472.90547166,0.00013103,5]
[392868063,1762088758587,472.90547166,0.00016207,9]
[392868064,1762088759082,472.90547166,0.0001931,13]
[392868065,1762088760717,-289.59433696,0.00021397,2]
[392868066,1762088760738,-917.22496268,0.00021397,2]
[392868067,1762088762230,-282.77503732,0.00021397,2]
[392868068,1762088762252,-17.22496268,0.00021398,2]
[392868069,1762088764796,-300.0,0.00021397,2]
[392868070,1762088764825,-28.11408654,0.00021398,2]
[392868071,1762088770760,-429.07240912,0.00021372,2]
[392868072,1762088823392,4771.7175833,0.00020476,2]
[392868075,1762088932782,-489.0,0.00021397,2]
[392868076,1762088932806,-11.0,0.00021397,2]
[392868077,1762088934882,-207.17207289,0.00021397,2]
[392868078,1762088937133,-81.82792711,0.00021397,2]
[392868079,1762088937157,-211.0,0.00021398,2]
[392868080,1762088938023,714.13830971,0.00020889,2]
[392868081,1762088939184,-189.82442573,0.00021398,2]
[392868082,1762088977766,-373.3966314,0.0002137,2]
[392868083,1762088980967,-162.88488126,0.0002137,2]
[392868084,1762088993272,-402.67040663,0.0002137,2]
[392868118,1762089032552,-56.89631972,0.0002137,2]
[392868120,1762089032561,-300.0,0.00021397,2]
[392868121,1762089032571,-300.0,0.00021397,2]
[392868122,1762089032582,-1200.0,0.00021397,2]
[392868123,1762089032592,-8928.08812895,0.00021398,2]
[392868138,1762089038354,-886.6992,0.00021398,2]
[392868140,1762089038366,-3107.98852329,0.00021398,2]
[392868142,1762089038376,-300.0,0.000214,2]
[392868144,1762089038386,-2168.85475249,0.00021408,2]
[392868146,1762089038394,-500.0,0.00021433,2]
[392868148,1762089038404,-500.0,0.00021433,2]
[392868150,1762089038413,-500.0,0.00021433,2]
[392868152,1762089038423,-500.0,0.00021433,2]
[392868154,1762089038432,-500.0,0.00021433,2]
[392868156,1762089038441,-500.0,0.00021433,2]
[392868158,1762089038451,-500.0,0.00021433,2]
[392868160,1762089038460,-500.0,0.00021433,2]
[392868162,1762089038469,-500.0,0.00021433,2]
[392868164,1762089038478,-500.0,0.00021433,2]
[392868166,1762089038487,-500.0,0.00021433,2]
[392868168,1762089038496,-500.0,0.00021433,2]
[392868170,1762089038506,-492.09699331,0.00021433,2]
[392868172,1762089038522,-7.90300669,0.00021433,2]
[392868174,1762089038531,-500.0,0.00021433,2]
[392868176,1762089038541,-500.0,0.00021433,2]
[392868178,1762089038550,-500.0,0.00021433,2]
[392868180,1762089038560,-500.0,0.00021433,2]
[392868182,1762089038569,-500.0,0.00021433,2]
[392868184,1762089038578,-500.0,0.00021433,2]
[392868186,1762089038587,-472.12547088,0.00021433,2]
[392868188,1762089038598,-296.92672381,0.00021433,2]
[392868190,1762089038608,-548.70356221,0.00021433,2]
[392868192,1762089038617,-500.0,0.00021433,2]
[392868194,1762089038626,-500.0,0.00021433,2]
[392868196,1762089038635,-500.0,0.00021433,2]
[392868198,1762089038644,-500.0,0.00021433,2]
[392868200,1762089038654,-500.0,0.00021433,2]
[392868202,1762089038663,-500.0,0.00021433,2]
[392868204,1762089038672,-500.0,0.00021433,2]
[392868206,1762089038682,-500.0,0.00021433,2]
[392868209,1762089038691,-500.0,0.00021433,2]
[392868211,1762089038700,-500.0,0.00021433,2]
[392868212,1762089038709,-500.0,0.00021433,2]
[392868215,1762089038718,-500.0,0.00021433,2]
[392868216,1762089038727,-500.0,0.00021433,2]
[392868218,1762089038737,-500.0,0.00021433,2]
[392868220,1762089038746,-500.0,0.00021433,2]
[392868222,1762089038755,-500.0,0.00021433,2]
[392868224,1762089038764,-500.0,0.00021433,2]
[392868226,1762089038774,-500.0,0.00021433,2]
[392868228,1762089038783,-89.45073241,0.00021433,2]
[392868231,1762089038802,-410.54926759,0.00021433,2]
[392868233,1762089038811,-500.0,0.00021433,2]
[392868235,1762089038820,-437.63354122,0.00021433,2]
[392868279,1762089040588,-62.36645878,0.00021433,2]
[392868281,1762089040598,-500.0,0.00021433,2]
[392868284,1762089040607,-500.0,0.00021433,2]
[392868285,1762089040616,-500.0,0.00021433,2]
[392868287,1762089040625,-389.87217991,0.00021433,2]
[392868290,1762089040635,-500.0,0.00021433,2]
[392868291,1762089040643,-500.0,0.00021433,2]
[392868294,1762089040653,-500.0,0.00021433,2]
[392868295,1762089040662,-500.0,0.00021433,2]
[392868298,1762089040671,-500.0,0.00021433,2]
[392868299,1762089040681,-500.0,0.00021433,2]
[392868301,1762089040691,-500.0,0.00021433,2]
[392868304,1762089040702,-500.0,0.00021433,2]
[392868306,1762089040711,-500.0,0.00021433,2]
[392868308,1762089040721,-500.0,0.00021433,2]
[392868310,1762089040732,-500.0,0.00021433,2]
[392868312,1762089040742,-500.0,0.00021433,2]
[392868314,1762089040752,-500.0,0.00021433,2]
[392868316,1762089040761,-500.0,0.00021433,2]
[392868329,1762089040873,-500.0,0.00021433,2]
[392868331,1762089040882,-292.48021148,0.00021433,2]
[392868333,1762089040892,-500.0,0.00021433,2]
[392868335,1762089040901,-500.0,0.00021433,2]
[392868337,1762089040910,-500.0,0.00021433,2]
[392868339,1762089040920,-307.73115941,0.00021434,2]
[392868341,1762089040930,-249.84629912,0.00021469,2]
[392868343,1762089040939,-168.0,0.00021469,2]
[392868345,1762089040948,-45700.2036913,0.0002147,2]
[392868418,1762089041703,-126.60336863,0.0002147,2]
[392868420,1762089041715,-4173.19294007,0.0002147,2]
[392868421,1762089041724,-420.47789349,0.00021472,2]
[392868422,1762089041735,-79.52210651,0.00021472,2]
[392868423,1762089041744,-500.0,0.00021473,2]
[392868424,1762089041753,-51.26676533,0.0002149,3]
[392868425,1762089041764,-598.44323467,0.0002149,3]
[392868426,1762089041773,-292.36,0.0002149,3]
[392868427,1762089041783,-282.99829249,0.00021497,2]
[392868440,1762089043566,-300.0,0.000214,2]
[392868441,1762089043575,-9.62870751,0.00021497,2]
[392868442,1762089043584,-179.46497678,0.00021497,2]